Workbook

Sheet Пр.№4
F3: Приложение №4
C4: к решению Совета депутатов Борковского сельского поселения
C5: " О бюджете Борковского сельского поселения на 2016 год"
C6: от 24.12.2016 №18
A12: Ведомственная структура расходов бюджета Борковского сельского поселения
A13: на 2016 год
H15: (тыс. рублей)
A16: Наименование | C16: Мин | D16: Рз | E16: ПР | F16: ЦСР | G16: ВР | H16: Сумма | I16: 2009 год | J16: 2010 год
A17: Администрация Борковского сельского поселения | C17: 335
A19: Общегосударственные вопросы | C19: 335 | D19: 01 | H19: =H22+H34+H67+H76+H56+H80 -> 4093.75 | I19: =I22+#REF!+#REF!+I34+#REF!++#REF!+#REF!+#REF!+#REF! ->  | J19: =J22+#REF!+#REF!+J34+#REF!++#REF!+#REF!+#REF!+#REF! -> 
A20: Функционирование высшего должностного лица
A21: субъекта Российской Федерации и
A22: муниципального образования | C22: 335 | D22: =D$19 -> 01 | E22: 02 | H22: =H23 -> 621.9 | I22: =#REF! ->  | J22: =#REF! -> 
A23: Глава муниципального образования | C23: 335 | D23: =D$19 -> 01 | E23: =E$22 -> 02 | F23: 20 1 00 01000 | H23: =H25 -> 621.9 | I23: =I26 -> 707 | J23: =J26 -> 724
A24: Расходы на обеспечение функций органов
A25: местного самоуправления | H25: =H26+H30+H29 -> 621.9
A26: Фонд оплаты труда государственных (муниципальных) органов | C26: 335 | D26: =D$19 -> 01 | E26: =E$22 -> 02 | F26: 20 1 00 01000 | G26: 121 | H26: 451 | I26: 707 | J26: 724
A27: Взносы по обязательном у социальному страхованию на выплаты
A28: денежного содержания и иные выплаты работникам
A29: государственных (муниципальных) органов | C29: 335 | D29: 01 | E29: 02 | F29: 20 1 00 01000 | G29: 129 | H29: 130.8
A30: Иные выплаты персоналу, за исключением фонда оплаты труда | C30: 335 | D30: =D$19 -> 01 | E30: =E$22 -> 02 | F30: 20 1 00 01000 | G30: 122 | H30: 40.1
A31: Функционирование Правительства Российской
A32: Федерации, высших исполнительных органов
A33: государственной власти субъектов Российской
A34: Федерации, местных администраций | C34: 335 | D34: =D$19 -> 01 | E34: 04 | H34: =H38 -> 3098.1 | I34: =I38 ->  | J34: =J38 -> 
A35: Руководство и управление в сфере установленных
A36: функций органов государственной власти субъектов
A37: Российской Федерации и органов местного
A38: самоуправления | C38: 335 | D38: =D$19 -> 01 | E38: =E34 -> 04 | F38: 20 2 00 01000 | H38: =H40 -> 3098.1 | I38: =#REF!+I39 ->  | J38: =#REF!+J39 -> 
A39: Расходы на содержание аппарата органов местного | I39: =I49 -> 109153 | J39: =J49 -> 111534
A40: самоуправления | C40: 335 | D40: =D$19 -> 01 | E40: =E34 -> 04 | F40: 20 2 00 01000 | H40: =H41+H45+H49+H47+H44+H53+H54+H55 -> 3098.1
A41: Фонд оплаты труда государственных (муниципальных) органов | C41: 335 | D41: =D$19 -> 01 | E41: 04 | F41: 20 2 00 01000 | G41: 121 | H41: 1787.8
A42: Взносы по обязательном у социальному страхованию на выплаты
A43: денежного содержания и иные выплаты работникам
A44: государственных (муниципальных) органов | C44: 335 | D44: 01 | E44: 04 | F44: 20 2 00 01000 | G44: 129 | H44: 520.8
A45: Иные выплаты персоналу, за исключением фонда оплаты труда | C45: 335 | D45: =D$19 -> 01 | E45: 04 | F45: 20 2 00 01000 | G45: 122 | H45: 160.4
A46: Закупка товаров, работ, услуг в области
A47: информационных технологий | C47: 335 | D47: 01 | E47: 04 | F47: 20 2 00 01000 | G47: 242 | H47: 195
A48: Прочая закупка товаров,работ и услуг для муниципальных
A49: нужд | C49: 335 | D49: =D$19 -> 01 | E49: =E34 -> 04 | F49: 20 2 00 01000 | G49: 244 | H49: 385 | I49: =41535+18149+427+17648+30000+534+860 -> 109153 | J49: =42995+18483+456+19031+30000+569 -> 111534
A50: Областной резервный фонд на ликвидацию угрозы и
A51: последствий чрезвычайных ситуаций | D51: =D$19 -> 01 | E51: =#REF! ->  | F51: =#REF! ->  | H51: =H52 -> 0 | I51: =I52 -> 0 | J51: =J52 -> 0
A52: Прочие расходы | D52: =D$19 -> 01 | E52: =#REF! ->  | F52: =#REF! ->  | G52: 013 | H52: =3317-3317 -> 0 | I52: =3543-3543 -> 0 | J52: =3773-3773 -> 0
A53: Уплата налога на имущество организаций | C53: 335 | D53: =D$19 -> 01 | E53: 04 | F53: 20 2 00 01000 | G53: 851 | H53: 1.5
A54: Уплата прочих налогов, сборов и иных обязательных платежей | C54: 335 | D54: =D$19 -> 01 | E54: 04 | F54: 20 2 00 01000 | G54: 852 | H54: 1.8
A55: Уплата иных платежей | C55: 335 | D55: =D$19 -> 01 | E55: =#REF! ->  | F55: 20 2 00 01000 | G55: 853 | H55: 45.8
A56: Субвенция на возмещению затрат по содержанию штатных | C56: 335 | D56: 01 | E56: 04 | F56: 20 2 00 70280 | H56: =H61+H66+H64 -> 151.7
A57: единиц, осуществляющих переданные отдельные государствен-
A58: ные полномочия области по организации деятельности по сбору
A59: ( в том числе раздельному сбору) и транспортированию твердых
A60: коммунальных отходов городских и сельских поселений
A61: Фонд оплаты труда государственных (муниципальных) органов | C61: 335 | D61: 01 | E61: 04 | F61: 20 2 00 70280 | G61: 121 | H61: 111.6
A62: Взносы по обязательном у социальному страхованию на выплаты
A63: денежного содержания и иные выплаты работникам
A64: государственных (муниципальных) органов | C64: 335 | D64: 01 | E64: 04 | F64: 20 2 00 70280 | G64: 129 | H64: 32.6
A65: Прочая закупка товаров,работ и услуг для муниципальных
A66: нужд | C66: 335 | D66: 01 | E66: 04 | F66: 20 2 00 70280 | G66: 244 | H66: 7.5
A67: Обеспечение деятельности финансовых, налоговых | C67: 335 | D67: 01 | E67: 06 | H67: =+H74 -> 217.05
A68: и таможенных органов и органов финансового (финансово-
A69: бюджетного) надзора
A70: Иные межбюджетные трансферты из бюджетов поселений
A71: бюджету муниципального района на возмещение затрат по
A72: содержанию штатных единиц,осуществляющих переданные
A73: полномочия поселения по внешнему муниципальному
A74: финансовому контролю | C74: 335 | D74: 01 | E74: 06 | F74: 20 4 00 93020 | H74: =+H75 -> 217.05
A75: Иные межбюджетные трансферты | C75: 335 | D75: 01 | E75: 06 | F75: 20 4 00 93020 | G75: 540 | H75: 217.05
A76: Резервные фонды | C76: 335 | D76: 01 | E76: 11 | H76: =H78 -> 1
A77: Резервные фонды местных администраций | C77: 335 | D77: 01 | E77: 11 | F77: 20 5 00 25030 | H77: 1
A78: Резервные средства | C78: 335 | D78: 01 | E78: 11 | F78: 20 5 00 25030 | G78: 870 | H78: =H77 -> 1
A80: Другие общегосударственные вопросы | C80: 335 | D80: 01 | E80: 13 | H80: 4
A81: Содержание и обслуживание казны муниципального
A82: образования | C82: 335 | D82: 01 | E82: 13 | F82: 20 5 00 25150 | H82: 4
A83: Прочая закупка товаров,работ и услуг для муниципальных
A84: нужд | C84: 335 | D84: 01 | E84: 13 | F84: 20 5 00 25150 | G84: 244 | H84: 4
A85: Национальная оборона | C85: 335 | D85: 02 | H85: =+H86 -> 178
A86: Мобилизационная и вневойсковая подготовка | C86: 335 | D86: 02 | E86: 03 | H86: =+H87 -> 178
A87: Осуществление первичного воинского учета на | C87: 335 | D87: 02 | E87: 03 | F87: 20 5 00 51180 | H87: =H89+H94+H92 -> 178
A88: территории,где отсутствуют воинские комиссариаты
A89: Фонд оплаты труда государственных (муниципальных) органов | C89: 335 | D89: 02 | E89: 03 | F89: 20 5 00 51180 | G89: 121 | H89: 129.7
A90: Взносы по обязательном у социальному страхованию на выплаты
A91: денежного содержания и иные выплаты работникам
A92: государственных (муниципальных) органов | C92: 335 | D92: 02 | E92: 03 | F92: 20 5 00 51180 | G92: 129 | H92: 39.2
A93: Прочая закупка товаров,работ и услуг для муниципальных
A94: нужд | C94: 335 | D94: 02 | E94: 03 | F94: 20 5 00 51180 | G94: 244 | H94: 9.1
A95: Национальная безопасность и | C95: 335 | D95: 03 | H95: =H97 -> 69
A96: правоохранительная деятельность
A97: Обеспечение пожарной безопасности | C97: 335 | D97: 03 | E97: 10 | H97: =+H99 -> 69 | I97: =#REF!+#REF!+I99+#REF! ->  | J97: =#REF!+#REF!+J99+#REF! -> 
A98: Пожарная безопасность в рамках муниципальной
A99: программы "Устойчивое развитие территории Борковского | H99: =H100 -> 69 | I99: =#REF!+I100+#REF! ->  | J99: =#REF!+J100+#REF! -> 
A100: сельского поселения на 2014-2016гг." | C100: 335 | D100: =D$97 -> 03 | E100: 10 | F100: 01 0 00 25110 | H100: 69 | I100: =I101 -> 238496 | J100: =J101 -> 254189
A101: Прочая закупка товаров,работ и услуг для муниципальных | I101: =I102 -> 238496 | J101: =J102 -> 254189
A102: нужд | C102: 335 | D102: =D$97 -> 03 | E102: 10 | F102: 01 0 00 25110 | G102: 244 | H102: 69 | I102: =24567+213947-18 -> 238496 | J102: =27116+227094-21 -> 254189
A103: привлеченным кредитам в российских кредитных
A104: организациях на развитие животноводства
A105: Субсидирование процентных ставок по | D105: =#REF! ->  | E105: =#REF! ->  | F105: =#REF! ->  | G105: 356
A106: привлеченным кредитам в российских кредитных
A107: организациях на развитие малых форм
A108: хозяйствования в агропромышленном комплексе
A109: Субсидирование части затрат на приобретение | D109: =#REF! ->  | E109: =#REF! ->  | F109: =#REF! ->  | G109: 357
A110: дизельного топлива, использованного на
A111: проведение сезонных сельскохозяйственных работ
A112: Субсидирование процентных ставок по кредитам, | D112: =#REF! ->  | E112: =#REF! ->  | F112: =#REF! ->  | G112: 355
A113: полученным в российских кредитных организациях
A114: на развитие животноводства и промышленного
A115: рыбоводства
A116: Субсидирование процентных ставок по кредитам, | D116: =#REF! ->  | E116: =#REF! ->  | F116: =#REF! ->  | G116: 356
A117: полученным в российских кредитных организациях,
A118: и займам, полученным в сельскохозяйственных
A119: кредитных потребительских кооперативах,
A120: на развитие малых форм хозяйствования в
A121: агропромышленном комплексе
A122: Субсидии на поддержку племенного | D122: =#REF! ->  | E122: =#REF! ->  | F122: =#REF! ->  | G122: 357
A123: животноводства
A124: Возмещение части затрат на уплату процентов | D124: =#REF! ->  | E124: =#REF! ->  | F124: =#REF! ->  | G124: 627
A125: по кредитам, полученным на срок до пяти лет
A126: в российских кредитных организациях
A127: на приобретение племенного скота, племенного
A128: материала рыб, техники и оборудования
A129: для животноводческих комплексов и организаций,
A130: осуществляющих промышленное рыбоводство
A131: Национальная экономика | D131: =#REF! ->  | E131: =#REF! ->  | F131: =#REF! ->  | G131: 628
A132: Национальная экономика | C132: 335 | D132: 04 | H132: =H133 -> 1981.6
A133: Дорожное хозяйство(дорожные фонды) | C133: 335 | D133: 04 | E133: 09 | H133: =H137+H142+H146 -> 1981.6
A134: Дорожное хозяйство в рамках муниципальной программы
A135: "Устойчивое развитие территории Борковского сельского
A136: поселения на 2014-2016гг." | C136: 335 | D136: 04 | E136: 09 | F136: 01 0 00 00000 | H136: 1900
A137: Капитальный ремонт и ремонт автомобильных дорог общего пользования | C137: 335 | D137: 04 | E137: 09 | F137: 01 0 00 S5170 | H137: =H140 -> 658.6
A138: пользования местного значения в границах населенных пунктов
A139: Прочая закупка товаров,работ и услуг для
A140: муниципальных нужд | C140: 335 | D140: 04 | E140: 09 | F140: 01 0 00 S5170 | G140: 244 | H140: 658.6
A141: Содержание автомобильных дорог общего пользования
A142: местного значения в границах населенных пунктов | C142: 335 | D142: 04 | E142: 09 | F142: 01 0 00 25160 | H142: 200
A143: Прочая закупка товаров,работ и услуг для муниципальных
A144: нужд | C144: 335 | D144: 04 | E144: 09 | F144: 01 0 00 25160 | G144: 244 | H144: 200 | I144: 09 | J144: 01 0 2 516
A145: Осуществление дорожной деятельности в отношении
A146: автомобильных дорог общего пользования местного значения | C146: 335 | D146: 04 | E146: 09 | F146: 01 0 00 71520 | H146: =H148 -> 1123
A147: Прочая закупка товаров,работ и услуг для
A148: муниципальных нужд | C148: 335 | D148: 04 | E148: 09 | F148: 01 0 00 71520 | G148: 244 | H148: 1123
A149: Жилищно-коммунальное хозяйство | C149: 335 | D149: 05 | H149: =H150+H155 -> 3015.5
A150: Коммунальное хозяйство | C150: 335 | D150: 05 | E150: 02 | H150: =+H153 -> 300
A151: Компенсация выпадающих доходов организациям,
A152: предоставляющим населению услуги
A153: общественных бань | C153: 335 | D153: 05 | E153: 02 | F153: 01 0 00 62200 | H153: =H154 -> 300
A154: Субсидии юридическим лицам | C154: 335 | D154: 05 | E154: 02 | F154: 01 0 00 62200 | G154: 810 | H154: 300
A155: Благоустройство | C155: 335 | D155: 05 | E155: 03 | H155: =+H159+H161+H165+H168 -> 2715.5
A156: Организация уличного освещения с использованием | I156: =#REF! ->  | J156: =#REF! -> 
A157: новых технологий | C157: 335 | D157: 05 | E157: 03 | F157: 01 0 00 25190 | H157: =H159 -> 1989
A158: Прочая закупка товаров,работ и услуг для муниципальных
A159: нужд | C159: 335 | D159: 05 | E159: 03 | F159: 01 0 00 25190 | G159: 244 | H159: 1989
A160: Озеленение территории поселения | C160: 335 | D160: 05 | E160: 03 | F160: 01 0 00 25210 | H160: =H161 -> 140
A161: Прочая закупка товаров,работ и услуг для муниципальных | C161: 335 | D161: 05 | E161: 03 | F161: 01 0 00 25210 | G161: 244 | H161: 140
A162: нужд
A163: Организация и содержание мест захоронения | C163: 335 | D163: 05 | E163: 03 | F163: 01 0 00 25220 | G163: 244 | H163: =H165 -> 150
A164: Прочая закупка товаров,работ и услуг для муниципальных
A165: нужд | C165: 335 | D165: 05 | E165: 03 | F165: 01 0 00 25220 | G165: 244 | H165: 150 | I165: =I166 ->  | J165: =J166 -> 
A166: Прочие мероприятия по благоустройству | C166: 335 | D166: 05 | E166: 03 | F166: 01 0 00 25220 | H166: =H168 -> 436.5 | I166: =#REF! ->  | J166: =#REF! -> 
A167: Прочая закупка товаров,работ и услуг для муниципальных
A168: нужд | C168: 335 | D168: 05 | E168: 03 | F168: 01 0 00 25230 | G168: 244 | H168: 436.5
A169: Образование | C169: 335 | D169: 07 | H169: =H170+H175 -> 15.4
A170: Молодежная политика и оздоровление детей | C170: 335 | D170: 07 | E170: 07 | H170: =H171 -> 4
A171: Организационно-воспитательная работа с молодежью | C171: 335 | D171: 07 | E171: 07 | F171: 20 5 00 25000 | H171: =H172 -> 4 | I171: =I172+#REF!+#REF! ->  | J171: =J172+#REF!+#REF! -> 
A172: Реализация мероприятий для детей и молодежи | C172: 335 | D172: 07 | E172: =E$171 -> 07 | F172: 20 5 00 25090 | H172: =H174 -> 4 | I172: =I173 ->  | J172: =J173 -> 
A173: Прочая закупка товаров,работ и услуг для муниципальных | I173: =#REF!+I174 ->  | J173: =#REF!+J174 -> 
A174: нужд | C174: 335 | D174: 07 | E174: 07 | F174: 20 5 00 25090 | G174: 244 | H174: 4
A175: Другие вопросы в области образования | C175: 335 | D175: 07 | E175: 09 | H175: =H180+H187 -> 11.4
A176: Мероприятия на организацию профессионального
A177: образования и дополнительного профессионального
A178: образования выборных должностных лиц,
A179: муниципальных служащих и служащих городских и
A180: сельских поселений | C180: 335 | D180: 07 | E180: 09 | F180: 20 5 00 S5370 | H180: 2
A181: Прочая закупка товаров,работ и услуг для муниципальных
A182: нужд | C182: 335 | D182: 07 | E182: 09 | F182: 20 5 00 S5370 | G182: 244 | H182: 2
A183: Субсидии бюджетам муниципальных районов и городского
A184: округа на организацию профессионального образования
A185: и дополнительного профессионального образования
A186: выборных должностных лиц, служащих и муниципальных
A187: служащих Новгородской области | C187: 335 | D187: 07 | E187: 09 | F187: 20 5 00 72280 | H187: 9.4
A188: Прочая закупка товаров,работ и услуг для муниципальных
A189: нужд | C189: 335 | D189: 07 | E189: 09 | F189: 20 5 00 72280 | G189: 244 | H189: 9.4
A191: Культура, кинематография, средства
A192: массовой информации | C192: 335 | D192: 08 | H192: =H193 -> 2336.4
A193: Культура | C193: 335 | D193: 08 | E193: 01 | H193: =H194+H199 -> 2336.4 | I193: =#REF!+#REF!+#REF!+#REF! ->  | J193: =#REF!+#REF!+#REF!+#REF! -> 
A194: Дворцы и дома культуры | C194: 335 | D194: =D$193 -> 08 | E194: 01 | F194: 20 5 00 14000 | H194: =H198 -> 2334.4
A195: Обеспечение деятельности подведомственных учреждений | C195: 335 | D195: 08 | E195: 01 | F195: 20 5 00 14010 | H195: =+H198 -> 2334.4
A196: Субсидии автономным учреждениям на финансовое
A197: обеспечение муниципального задания на оказание
A198: муниципальных услуг (выполнение работ) | C198: 335 | D198: 08 | E198: 01 | F198: 20 5 00 14010 | G198: 621 | H198: 2334.4
A199: Мероприятия в области культуры | C199: 335 | D199: 08 | E199: 01 | F199: 20 5 00 25050 | H199: =H201 -> 2
A200: Прочая закупка товаров,работ и услуг для муниципальных | I200: =I201 ->  | J200: =J201 -> 
A201: нужд | C201: 335 | D201: =D$193 -> 08 | E201: =E194 -> 01 | F201: 20 5 00 25050 | G201: 244 | H201: 2 | I201: =#REF! ->  | J201: =#REF! -> 
A202: Социальная политика | C202: 335 | D202: 10 | H202: =H203 -> 252.5
A203: Пенсионное обеспечение | C203: 335 | D203: 10 | E203: 01 | H203: =+H204 -> 252.5
A204: Публичные обязательства | C204: 335 | D204: 10 | E204: 01 | F204: 20 5 00 82100 | H204: =H206 -> 252.5
A205: Доплаты к пенсиям муниципальных служащих, служащих,
A206: замещавших муниципальные должности | C206: 335 | D206: 10 | E206: 01 | F206: 20 5 00 82100 | H206: =+H207 -> 252.5
A207: Иные пенсии, социальные доплаты к пенсиям | C207: 335 | D207: 10 | E207: 01 | F207: 20 5 00 82100 | G207: 312 | H207: 252.5
A208: Физическая культура и спорт | C208: 335 | D208: 11 | H208: =H209 -> 18
A209: Физическая культура | C209: 335 | D209: 11 | E209: 01 | H209: =+H210 -> 18 | I209: =#REF!+#REF!+#REF!+#REF!+#REF!+#REF!+#REF! ->  | J209: =#REF!+#REF!+#REF!+#REF!+#REF!+#REF!+#REF! -> 
A210: Мероприятия в области физической культуры и спорта | C210: 335 | D210: =D$209 -> 11 | E210: 01 | F210: 20 5 00 25100 | H210: =H212 -> 18 | I210: =14337+884 -> 15221 | J210: =15266+938 -> 16204
A211: Прочая закупка товаров,работ и услуг для муниципальных
... 3 more rows
